lending/lending_fUSD_20251018
["ID","MTS","AMOUNT","RATE_DAILY","PERIOD"]
[391725482,1760753451933,-213.82927506,0.00034029,2]
[391725483,1760753451942,-151.0,0.0003412,30]
[391725484,1760753451951,-151.0,0.0003412,30]
[391725485,1760753451961,-166.57905,0.0003412,30]
[391725486,1760753451970,-151.0,0.0003412,30]
[391725487,1760753451983,-151.0,0.0003412,30]
[391725488,1760753451993,-151.0,0.0003412,30]
[391725489,1760753452003,-151.592104,0.0003412,30]
[391725490,1760753452013,-151.0,0.0003412,30]
[391725491,1760753452022,-273.964377,0.0003412,30]
[391725492,1760753452032,-151.0,0.0003412,30]
[391725493,1760753452041,-151.0,0.0003412,30]
[391725494,1760753452050,-151.0,0.0003412,30]
[391725495,1760753452060,-151.0,0.0003412,30]
[391725496,1760753452071,-151.0,0.0003412,30]
[391725497,1760753452080,-35273.81620056,0.0003413,10]
[391725498,1760753452090,-1425.0,0.0003414,2]
[391725499,1760753452099,-1425.0,0.00034148,2]
[391725500,1760753452109,-353.45,0.00034164,2]
[391725501,1760753452119,-151.24,0.00034164,2]
[391725502,1760753452129,-855.13,0.0003418,120]
[391725503,1760753452139,-263.46334056,0.00034236,5]
[391725504,1760753452149,-500.0,0.00034275,30]
[391725505,1760753452158,-150.0,0.00034283,120]
[391725506,1760753452168,-1000.0,0.00034369,2]
[391725507,1760753452178,-565.64512163,0.00034377,2]
[391725508,1760753452187,-178.56,0.00034397,2]
[391725509,1760753452196,-300.0,0.00034397,2]
[391725510,1760753452206,-150.0,0.00034397,2]
[391725511,1760753452215,-546.15,0.00034397,2]
[391725512,1760753452225,-150.36,0.00034397,2]
[391725513,1760753452234,-150.0,0.00034397,2]
[391725514,1760753452243,-150.0,0.00034397,2]
[391725515,1760753452252,-150.0,0.00034397,2]
[391725516,1760753452261,-152.0,0.000344,120]
[391725517,1760753452270,-778.74680655,0.00034484,22]
[391725518,1760753452279,-153.0,0.000345,120]
[391725519,1760753452288,-409.09406074,0.00034511,2]
[391725520,1760753452297,-3078.0,0.00034512,2]
[391725521,1760753452307,-500.0,0.00034549,30]
[391725522,1760753452321,-150.0,0.00034624,120]
[391725523,1760753452331,-202.28157104,0.00034632,2]
[391725524,1760753452340,-150.0,0.00034668,7]
[391725525,1760753452350,-150.0,0.00034668,7]
[391725526,1760753452359,-150.0,0.00034668,7]
[391725527,1760753452372,-150.0,0.00034668,7]
[391725528,1760753452381,-150.0,0.00034668,7]
[391725529,1760753452390,-150.0,0.00034668,7]
[391725530,1760753452400,-150.0,0.00034668,7]
[391725531,1760753452409,-150.0,0.00034668,7]
[391725532,1760753452419,-150.0,0.00034668,7]
[391725533,1760753452428,-150.0,0.00034668,7]
[391725534,1760753452437,-150.0,0.00034668,7]
[391725535,1760753452447,-150.0,0.00034668,7]
[391725536,1760753452456,-150.0,0.00034668,7]
[391725537,1760753452465,-150.0,0.00034668,7]
[391725538,1760753452474,-150.0,0.00034668,7]
[391725539,1760753452484,-150.0,0.00034668,7]
[391725540,1760753452493,-162.01875243,0.00034668,7]
[391725541,1760753452503,-898.28,0.000347,30]
[391725542,1760753452512,-1000.0,0.00034743,4]
[391725543,1760753452521,-151.0,0.00034753,30]
[391725544,1760753452531,-151.0,0.00034753,30]
[391725545,1760753452541,-150.0,0.00034793,7]
[391725546,1760753452551,-787.72,0.000348,2]
[391725547,1760753452560,-150.0,0.00034811,7]
[391725548,1760753452570,-500.0,0.00034823,30]
[391725549,1760753452580,-1000.0,0.00034849,2]
[391725550,1760753452590,-295.99665503,0.00034849,120]
[391725551,1760753452600,-634.50636079,0.0003485,2]
[391725552,1760753452609,-150.0,0.00034871,7]
[391725553,1760753452619,-7000.0,0.000349,2]
[391725554,1760753452629,-150.0,0.00034917,7]
[391725555,1760753452638,-150.0,0.00034924,120]
[391725556,1760753452648,-150.0,0.00034944,7]
[391725557,1760753452658,-1092.91199957,0.0003495,120]
[391725558,1760753452668,-150.0,0.00034954,7]
[391725559,1760753452677,-150.0,0.00034965,7]
[391725560,1760753452686,-174.72,0.00034986,2]
[391725561,1760753452696,-153.9,0.00034986,2]
[391725562,1760753452706,-403.59,0.00034986,2]
[391725563,1760753452715,-189.32,0.00034986,2]
[391725564,1760753452724,-150.0,0.00034986,2]
[391725565,1760753452733,-150.0,0.00034986,2]
[391725566,1760753452743,-151.37,0.00034986,2]
[391725567,1760753452756,-413.73,0.00034986,2]
[391725568,1760753452765,-150.0,0.00034986,2]
[391725569,1760753452775,-302.88,0.00034986,2]
[391725570,1760753452785,-1093.0,0.00034986,2]
[391725571,1760753452794,-826.9,0.00034986,2]
[391725572,1760753452804,-546.8,0.00034986,2]
[391725573,1760753452814,-413.73,0.00034986,2]
[391725574,1760753452824,-1093.0,0.00034986,2]
[391725575,1760753452834,-448.0,0.00034986,2]
[391725576,1760753452844,-413.65,0.00034986,2]
[391725577,1760753452854,-412.93,0.00034986,2]
[391725578,1760753452864,-151.0,0.00034988,30]
[391725579,1760753452875,-151.0,0.00034988,30]
[391725580,1760753452885,-5881.0,0.00034989,2]
[391725581,1760753452895,-150.0,0.00034989,7]
[391725582,1760753452984,-568.36,0.00035,120]
[391725583,1760753452994,-186.92,0.00035,120]
[391725584,1760753453004,-546.89,0.00035,120]
[391725585,1760753453013,-300.0,0.00035,60]
[391725586,1760753453023,-150.0,0.0003502,120]
[391725587,1760753453033,-1000.0,0.00035032,2]
[391725588,1760753453042,-150.0,0.00035041,7]
[391725589,1760753453052,-150.148,0.00035043,2]
[391725590,1760753453062,-250.0,0.00035043,2]
[391725591,1760753453079,-254.981,0.00035043,2]
[391725592,1760753453089,-188.098,0.00035043,2]
[391725593,1760753453099,-150.142,0.00035043,2]
[391725594,1760753453109,-1267.0,0.00035043,2]
[391725595,1760753453119,-2058.678,0.00035043,2]
[391725596,1760753453134,-750.0,0.00035043,2]
[391725597,1760753453144,-3408.0,0.00035043,2]
[391725598,1760753453153,-1310.0,0.00035043,2]
[391725599,1760753453163,-1589.0,0.00035043,2]
[391725600,1760753453172,-575.329,0.00035043,2]
[391725601,1760753453181,-605.585,0.00035043,2]
[391725602,1760753453191,-817.0,0.00035043,2]
[391725603,1760753453200,-1425.0,0.00035058,2]
[391725604,1760753453209,-1195.33,0.00035068,120]
[391725605,1760753453219,-150.0,0.00035074,7]
[391725606,1760753453228,-344.91441206,0.00035091,2]
[391725607,1760753453237,-804.17102365,0.00035094,2]
[391725608,1760753453247,-150.0,0.00035096,7]
[391725609,1760753453256,-150.0,0.00035096,7]
[391725610,1760753453266,-500.0,0.00035097,30]
[391725611,1760753453275,-600.0,0.00035118,23]
[391725612,1760753453285,-8045.90370547,0.00035146,2]
[391725613,1760753453295,-150.0,0.0003515,7]
[391725614,1760753453305,-150.0,0.00035166,7]
[391725615,1760753453315,-1425.0,0.00035181,2]
[391725616,1760753453326,-150.0,0.00035192,2]
[391725617,1760753453336,-887.09,0.00035214,2]
[391725618,1760753453346,-413.65,0.00035219,2]
[391725619,1760753453357,-413.65,0.00035219,2]
[391725620,1760753453366,-413.65,0.00035219,2]
[391725621,1760753453375,-413.65,0.00035219,2]
[391725622,1760753453385,-150.0,0.00035219,7]
[391725623,1760753453394,-150.0,0.00035239,7]
[391725624,1760753453404,-1425.0,0.00035244,2]
[391725625,1760753453413,-404.19242946,0.0003525,15]
[391725626,1760753453422,-2590.0,0.0003526,2]
[391725627,1760753453432,-6446.0,0.0003526,2]
[391725628,1760753453441,-557.0,0.0003526,2]
[391725629,1760753453451,-2659.412,0.0003526,2]
[391725630,1760753453460,-150.0,0.00035261,7]
[391725631,1760753453469,-150.0,0.00035277,7]
[391725632,1760753453478,-1091.0,0.00035284,5]
[391725633,1760753453488,-150.0,0.0003529,7]
[391725634,1760753453497,-2500.0,0.000353,14]
[391725635,1760753453507,-152.0,0.000353,120]
[391725636,1760753453516,-1058.6686,0.000353,2]
[391725637,1760753453526,-885.2425,0.000353,2]
[391725638,1760753453535,-150.0,0.00035311,7]
[391725639,1760753453544,-150.0,0.00035311,7]
[391725640,1760753453553,-836.10033765,0.00035326,24]
[391725641,1760753453562,-1425.0,0.00035338,2]
[391725642,1760753453572,-30000.0,0.00035347,30]
[391725643,1760753453582,-150.0,0.00035348,2]
[391725644,1760753453591,-2219.59056978,0.00035348,2]
[391725645,1760753453601,-150.0,0.00035348,2]
[391725646,1760753453610,-590.62414403,0.00035348,2]
[391725647,1760753453621,-150.0,0.00035348,2]
[391725648,1760753453631,-1632.17344362,0.00035348,2]
[391725649,1760753453641,-150.0,0.00035348,2]
[391725650,1760753453651,-4760.10662393,0.00035348,2]
[391725651,1760753453661,-1425.0,0.00035364,2]
[391725652,1760753453674,-500.0,0.00035371,30]
[391725653,1760753453684,-300.0,0.00035379,10]
[391725654,1760753453694,-300.0,0.00035379,10]
[391725655,1760753453704,-300.0,0.00035379,10]
[391725656,1760753453713,-300.0,0.00035379,10]
[391725657,1760753453723,-151.0,0.0003538,30]
[391725658,1760753453733,-151.0,0.0003538,30]
[391725659,1760753453743,-151.0,0.0003538,30]
[391725660,1760753453752,-151.0,0.0003538,30]
[391725661,1760753453761,-151.0,0.0003538,30]
[391725662,1760753453771,-152.518088,0.0003538,30]
[391725663,1760753453780,-151.0,0.0003538,30]
[391725664,1760753453790,-177.078586,0.0003538,30]
[391725665,1760753453800,-151.0,0.0003538,30]
[391725666,1760753453809,-151.0,0.0003538,30]
[391725667,1760753453819,-151.0,0.0003538,30]
[391725668,1760753453829,-150.0,0.00035382,7]
[391725669,1760753453839,-300.0,0.00035388,10]
[391725670,1760753453849,-300.0,0.00035389,10]
[391725671,1760753453859,-300.0,0.00035389,10]
[391725672,1760753453869,-300.0,0.00035389,10]
[391725673,1760753453879,-209717.63711429,0.0003539,30]
[391725674,1760753453888,-150.0,0.00035414,7]
[391725675,1760753453898,-150.0,0.00035479,7]
[391725676,1760753453907,-150.0,0.00035494,7]
[391725677,1760753453916,-150.0,0.00035525,7]
[391725678,1760753453925,-150.0,0.00035525,7]
[391725679,1760753453935,-150.0,0.00035538,7]
[391725680,1760753453945,-150.0,0.00035557,7]
[391725681,1760753453957,-699.64,0.00035616,2]
[391725682,1760753453967,-474.79,0.00035625,2]
[391725683,1760753453977,-474.79,0.00035625,2]
[391725684,1760753453986,-473.62,0.00035625,2]
[391725685,1760753453996,-695.27,0.00035625,2]
[391725686,1760753454006,-695.27,0.00035625,2]
[391725687,1760753454015,-695.27,0.00035625,2]
[391725688,1760753454025,-695.27,0.00035625,2]
[391725689,1760753454034,-695.27,0.00035625,2]
[391725690,1760753454044,-694.07,0.00035625,2]
[391725691,1760753454053,-150.0,0.00035632,7]
[391725692,1760753454065,-150.0,0.00035632,7]
[391725693,1760753454075,-500.0,0.00035645,30]
[391725694,1760753454085,-150.0,0.00035663,7]
[391725695,1760753454095,-150.0,0.00035667,7]
[391725696,1760753454104,-150.0,0.00035682,7]
[391725697,1760753454114,-2196.0,0.00035688,2]
[391725698,1760753454124,-300.0,0.00035699,10]
[391725699,1760753454133,-300.0,0.00035699,10]
[391725700,1760753454143,-300.0,0.00035699,10]
[391725701,1760753454153,-150.0,0.00035769,7]
[391725702,1760753454164,-150.0,0.00035787,7]
[391725703,1760753454174,-300.0,0.00035797,10]
[391725704,1760753454184,-300.0,0.00035797,10]
[391725705,1760753454194,-300.0,0.00035797,10]
[391725706,1760753454204,-300.0,0.00035807,10]
[391725707,1760753454213,-300.0,0.00035807,10]
[391725708,1760753454223,-300.0,0.00035807,10]
[391725709,1760753454232,-150.0,0.0003581,7]
[391725710,1760753454241,-300.0,0.00035849,10]
[391725711,1760753454251,-300.0,0.00035849,10]
[391725712,1760753454260,-300.0,0.00035849,10]
[391725713,1760753454270,-4537.6760399,0.0003585,60]
[391725714,1760753454280,-152.0,0.0003585,5]
[391725715,1760753454289,-150.0,0.00035854,7]
[391725716,1760753454299,-150.0,0.00035885,7]
[391725717,1760753454311,-300.0,0.00035899,10]
[391725718,1760753454322,-300.0,0.00035899,10]
[391725719,1760753454332,-1000.0,0.000359,30]
[391725720,1760753454342,-1000.0,0.000359,30]
[391725721,1760753454352,-1000.0,0.000359,30]
[391725722,1760753454362,-1000.0,0.000359,30]
[391725723,1760753454372,-1000.0,0.000359,30]
[391725724,1760753454383,-1000.0,0.000359,30]
[391725725,1760753454392,-1000.0,0.000359,30]
[391725726,1760753454404,-1000.0,0.000359,30]
[391725727,1760753454415,-1000.0,0.000359,30]
[391725728,1760753454424,-1000.0,0.000359,30]
[391725729,1760753454433,-1000.0,0.000359,30]
[391725730,1760753454443,-272.71869196,0.000359,30]
[391725731,1760753454452,-150.0,0.00035911,7]
[391725732,1760753454462,-500.0,0.00035919,30]
[391725733,1760753454471,-150.0,0.00035953,7]
[391725734,1760753454481,-150.0,0.00035953,7]
[391725735,1760753454491,-150.0,0.00035953,7]
[391725736,1760753454500,-150.0,0.00035953,7]
[391725737,1760753454510,-150.0,0.00035953,7]
[391725738,1760753454520,-151.0,0.00035985,120]
[391725739,1760753454529,-151.0,0.00035985,120]
[391725740,1760753454539,-151.0,0.00035985,120]
[391725741,1760753454548,-151.0,0.00035985,120]
[391725742,1760753454558,-300.0,0.00035989,10]
[391725743,1760753454568,-300.0,0.00035989,10]
[391725744,1760753454578,-151.0,0.0003599,120]
[391725745,1760753454588,-151.0,0.0003599,120]
[391725746,1760753454598,-151.0,0.0003599,120]
[391725747,1760753454607,-151.0,0.0003599,120]
[391725748,1760753454617,-151.0,0.0003599,120]
[391725749,1760753454626,-50026.49511703,0.00036,6]
[391725750,1760753454635,-10677.0561883,0.00036,2]
[391725751,1760753454645,-234.82294058,0.00036,120]
[391725752,1760753454654,-334.77,0.00036025,2]
[391725753,1760753454663,-170.22,0.00036025,2]
[391725754,1760753454673,-413.65,0.00036025,2]
[391725755,1760753454682,-150.0,0.00036035,7]
[391725756,1760753454693,-300.0,0.00036036,2]
[391725757,1760753454703,-150.0,0.00036036,2]
[391725758,1760753454713,-150.0,0.00036036,2]
[391725759,1760753454722,-150.0,0.00036036,2]
[391725760,1760753454732,-150.0,0.00036036,2]
[391725761,1760753454741,-529.28,0.00036036,2]
[391725762,1760753454750,-420.52,0.00036036,2]
[391725763,1760753454759,-546.7,0.00036036,2]
[391725764,1760753454769,-546.7,0.00036036,2]
[391725765,1760753454779,-413.65,0.00036036,2]
[391725766,1760753454789,-413.65,0.00036036,2]
[391725767,1760753454799,-546.7,0.00036036,2]
[391725768,1760753454808,-546.7,0.00036036,2]
[391725769,1760753454818,-413.65,0.00036036,2]
[391725770,1760753454828,-150.0,0.00036044,7]
[391725771,1760753454837,-150.0,0.00036088,7]
[391725772,1760753454847,-197.987825,0.00036089,17]
[391725773,1760753454856,-153.673063,0.00036089,17]
[391725774,1760753454866,-150.0,0.00036095,7]
[391725775,1760753454876,-165.54,0.000361,7]
[391725776,1760753454885,-152.0,0.000361,120]
[391725777,1760753454895,-331.08,0.000361,7]
[391725778,1760753454906,-787.72,0.000361,2]
[391725779,1760753454915,-150.0,0.00036113,7]
[391725780,1760753454925,-150.0,0.0003615,7]
[391725781,1760753454934,-150.0,0.0003616,7]
[391725782,1760753454944,-1195.33,0.00036164,120]
[391725783,1760753454955,-168.27,0.00036165,2]
[391725784,1760753454965,-893.56877459,0.00036167,26]
[391725785,1760753454975,-500.0,0.00036193,30]
[391725786,1760753454984,-714.044257,0.00036221,120]
[391725787,1760753454994,-150.0,0.00036238,7]
[391725788,1760753455003,-150.0,0.00036274,7]
[391725789,1760753455023,-150.0,0.00036284,7]
[391725790,1760753455033,-150.0,0.0003629,7]
[391725791,1760753455043,-153.0,0.000363,120]
[391725792,1760753455052,-150.0,0.00036319,7]
[391725793,1760753455062,-153.673063,0.00036336,17]
[391725794,1760753455072,-150.0,0.00036381,7]
[391725795,1760753455082,-150.0,0.00036381,7]
[391725796,1760753455092,-150.0,0.00036408,7]
[391725797,1760753455102,-150.0,0.00036446,7]
[391725798,1760753455112,-357.6762453,0.0003646,2]
[391725799,1760753455122,-500.0,0.00036467,30]
[391725800,1760753455132,-500.0,0.00036492,120]
[391725801,1760753455141,-150.0,0.00036493,7]
[391725802,1760753455151,-150.0,0.00036523,7]
[391725803,1760753455160,-150.0,0.00036532,7]
[391725804,1760753455170,-957.77,0.00036573,2]
[391725805,1760753455179,-695.27,0.00036573,2]
[391725806,1760753455189,-695.27,0.00036573,2]
[391725807,1760753455199,-695.27,0.00036573,2]
[391725808,1760753455208,-695.27,0.00036573,2]
[391725809,1760753455218,-695.27,0.00036573,2]
[391725810,1760753455228,-695.27,0.00036573,2]
[391725811,1760753455238,-150.0,0.00036595,7]
[391725812,1760753455248,-150.0,0.00036595,7]
[391725813,1760753455258,-150.0,0.00036595,7]
[391725814,1760753455267,-150.0,0.00036595,7]
[391725815,1760753455277,-150.0,0.00036595,7]
[391725816,1760753455287,-150.0,0.00036657,7]
[391725817,1760753455297,-150.0,0.00036666,7]
[391725818,1760753455307,-150.0,0.00036696,7]
[391725819,1760753455318,-1612.58918486,0.000367,120]
[391725820,1760753455331,-213.82927506,0.00036719,2]
[391725821,1760753455341,-500.0,0.00036741,30]
[391725822,1760753455350,-150.0,0.00036743,7]
[391725823,1760753455360,-150.0,0.00036781,7]
[391725824,1760753455374,-398.0,0.000368,120]
[391725825,1760753455384,-150.0,0.00036809,7]
[391725826,1760753455394,-150.0,0.00036809,7]
[391725827,1760753455408,-8045.90370547,0.00036823,2]
[391725828,1760753455418,-413.65,0.00036847,2]
[391725829,1760753455429,-826.14,0.00036847,2]
[391725830,1760753455439,-546.8,0.00036848,2]
[391725831,1760753455449,-170.77,0.00036848,2]
[391725832,1760753455459,-546.8,0.00036848,2]
[391725833,1760753455469,-176.09,0.00036848,2]
[391725834,1760753455479,-413.73,0.00036848,2]
[391725835,1760753455488,-546.8,0.00036848,2]
[391725836,1760753455498,-413.73,0.00036848,2]
[391725837,1760753455508,-176.09,0.00036848,2]
[391725838,1760753455518,-546.8,0.00036848,2]
[391725839,1760753455528,-413.73,0.00036848,2]
[391725840,1760753455538,-176.09,0.00036848,2]
[391725841,1760753455548,-413.73,0.00036848,2]
[391725842,1760753455558,-176.09,0.00036848,2]
[391725843,1760753455569,-150.0,0.0003687,7]
[391725844,1760753455580,-172.665,0.00036888,7]
[391725845,1760753455590,-150.0,0.00036899,7]
[391725846,1760753455600,-7000.0,0.000369,2]
[391725847,1760753455609,-150.0,0.00036905,7]
[391725848,1760753455620,-13885.18138166,0.0003691,2]
[391725849,1760753455630,-150.0,0.00036916,7]
[391725850,1760753455639,-150.0,0.00036951,7]
[391725851,1760753455649,-1000.0,0.00037,2]
[391725852,1760753455660,-1000.0,0.00037,2]
[391725853,1760753455669,-1000.0,0.00037,2]
[391725854,1760753455680,-1000.0,0.00037,2]
[391725855,1760753455690,-1000.0,0.00037,2]
[391725856,1760753455700,-1000.0,0.00037,2]
[391725857,1760753455709,-1000.0,0.00037,2]
[391725858,1760753455721,-1235.24595007,0.00037,30]
[391725859,1760753455731,-1000.0,0.00037,2]
[391725860,1760753455741,-1000.0,0.00037,2]
[391725861,1760753455751,-1000.0,0.00037,2]
[391725862,1760753455762,-152.0,0.00037,120]
[391725863,1760753455772,-5661.0,0.00037,117]
[391725864,1760753455783,-4388.06741618,0.00037,120]
[391725865,1760753455793,-951.14513528,0.00037008,28]
[391725866,1760753455803,-500.0,0.00037015,30]
[391725867,1760753455813,-150.0,0.00037029,7]
[391725868,1760753455824,-150.0,0.00037039,7]
[391725869,1760753455834,-150.0,0.00037076,7]
[391725870,1760753455844,-150.0,0.00037094,7]
[391725871,1760753455854,-150.0,0.00037101,7]
[391725872,1760753455864,-409.09406074,0.00037108,2]
[391725873,1760753455874,-1091.0,0.00037141,5]
[391725874,1760753455884,-150.0,0.00037145,7]
[391725875,1760753455894,-150.0,0.00037154,7]
[391725876,1760753455904,-150.0,0.00037164,120]
[391725877,1760753455913,-186.53821698,0.000372,120]
[391725878,1760753455924,-186.53821696,0.000372,120]
[391725879,1760753455934,-186.53821696,0.000372,120]
[391725880,1760753455944,-186.53821696,0.000372,120]
[391725881,1760753455955,-3127.68490526,0.00037212,120]
[391725882,1760753455966,-150.0,0.00037237,7]
[391725883,1760753455976,-150.0,0.00037237,7]
[391725884,1760753455985,-150.0,0.00037237,7]
[391725885,1760753455995,-150.0,0.00037237,7]
[391725886,1760753456005,-150.0,0.00037237,7]
[391725887,1760753456015,-1195.33,0.0003726,120]
[391725888,1760753456026,-150.0,0.00037278,7]
[391725889,1760753456036,-500.0,0.00037289,30]
[391725890,1760753456046,-150.0,0.00037304,7]
[391725891,1760753456056,-150.0,0.00037335,7]
[391725892,1760753456067,-150.0,0.00037379,7]
[391725893,1760753456077,-411.99568707,0.0003738,2]
[391725894,1760753456087,-8717.7220716,0.0003739,14]
[391725895,1760753456244,-706.14166,0.0003739,14]
[391725896,1760753456256,-926.20130003,0.0003739,14]
[391725897,1760753456284,-596.879186,0.00031,8]
[391725898,1760753456295,-500.0,0.00032,8]
[391725899,1760753456306,-1183.0,0.0003226,2]
[391725900,1760753456320,-611.19597256,0.0003739,14]
[391725901,1760753456356,269.0,0.00027397,120]
[391725902,1760753456370,-567.46690008,0.0003739,14]
[391725903,1760753463633,500.0,0.00022743,120]
[391725904,1760753463727,395.45593096,0.00022738,120]
[391725906,1760753494073,10331.0,0.0003209,30]
[391725909,1760753528272,1444.961986,7.945e-05,2]
[391726238,1760754243517,1037.14463889,0.00032078,120]
[391726258,1760754307790,3722.437073,7.945e-05,2]
[391726260,1760754308739,611.04514886,0.00032078,90]
[391726262,1760754310345,206.6111973,0.00032078,120]
[391726270,1760754327995,114674.42587596,0.00032078,30]
[391726272,1760754363613,375.23251706,0.00032078,30]
[391726543,1760754522581,175.09693289,0.00032082,30]
[391726548,1760754523653,13402.72109376,0.0001,2]
[391726550,1760754524199,434.39627395,0.00032082,60]
[391726707,1760754632259,-1200.0,0.00014999,2]
[391726708,1760754632269,-150.0,0.00014999,2]
[391726709,1760754632278,-3057.98176794,0.00015,2]
[391726710,1760754632366,-272.35299999,0.00015,2]
[391726711,1760754632377,-703.7030028,0.00015,2]
[391726712,1760754632389,-2034.143293,0.00015,2]
[391726713,1760754632423,-525.74328535,0.00015,2]
[391726714,1760754632434,-578.1981307,0.00015,2]
[391726715,1760754632475,-62077.4690469,0.00015,2]
[391726716,1760754632484,-183.98771662,0.0001509,2]
[391726717,1760754632494,-2678.53009137,0.00015189,2]
[391726718,1760754632504,-2684.30278553,0.0001519,2]
[391726719,1760754632513,-255.0,0.00016124,2]
[391726720,1760754632522,-5000.00806252,0.000162,5]
[391726721,1760754632534,-250.0,0.000165,2]
[391726722,1760754632543,-802.0,0.0002,2]
[391726723,1760754632553,-253.45231176,0.0002005,2]
[391726724,1760754632563,-3459.67622699,0.000201,2]
[391726725,1760754632572,-3459.67622699,0.000203,2]
[391726726,1760754632582,-3459.67622699,0.000205,2]
[391726728,1760754632591,-2773.77954505,0.000205,2]
[391726730,1760754632601,-250.0,0.00020566,7]
[391726732,1760754632610,-3459.67622699,0.000207,2]
[391726733,1760754632619,-14807.64,0.00020705,2]
[391726734,1760754632628,-3459.67622699,0.000209,2]
[391726735,1760754632638,-3459.67622699,0.000211,2]
[391726736,1760754632651,-1000.0,0.00021141,2]
[391726738,1760754632661,-2236.7838524,0.00021162,2]
[391726740,1760754632670,-3459.67622699,0.000213,2]
[391726741,1760754632679,-5547.55909011,0.00021446,2]
[391726742,1760754632689,-3459.67622699,0.000215,2]
[391726743,1760754632698,-3459.67622699,0.000217,2]
[391726744,1760754632707,-16879.36,0.00021757,2]
[391726745,1760754632716,-9999.99,0.00021757,2]
[391726746,1760754632725,-526.64,0.00021757,2]
[391726747,1760754632734,-183.17939251,0.000218,2]
[391726748,1760754632744,-19280.44178009,0.000219,2]
[391726749,1760754632754,-3459.67622699,0.00022,2]
[391726750,1760754632763,-20509.05660843,0.00022,4]
[391726751,1760754632772,-4095.58883975,0.00022,2]
[391726753,1760754632782,-160.97,0.00022,2]
[391726755,1760754632791,-250.0,0.00022,2]
[391726757,1760754632801,-308.2046035,0.00022,2]
[391726758,1760754632815,-488.29445278,0.000221,2]
[391726759,1760754632824,-237.26186221,0.0002211,2]
[391726761,1760754632833,-8321.33863516,0.00022393,2]
[391726763,1760754632843,-1323.94636876,0.00022458,2]
[391726764,1760754632852,-502.48970627,0.00022473,2]
[391726765,1760754632862,-502.72287121,0.00022473,2]
[391726766,1760754632871,-17693.58645975,0.000225,2]
[391726768,1760754638406,-5367.5,0.000225,2]
[391726772,1760754640360,-11984.45097009,0.000225,2]
[391726773,1760754640370,-10974.27,0.00022541,2]
[391726774,1760754640379,-516.34686925,0.0002271,2]
[391726775,1760754640388,-19145.21030613,0.000229,2]
[391726776,1760754640398,-252.48,0.00022955,30]
[391726777,1760754640410,-306.2834708,0.00022981,2]
[391726778,1760754640419,-2102.3115,0.00022986,10]
[391726779,1760754640428,-266.15830947,0.00023,2]
[391726780,1760754640437,-434.24509654,0.00023,2]
[391726781,1760754640447,-994.75924388,0.00023,2]
[391726782,1760754640461,-183.49675954,0.00023028,2]
[391726783,1760754640470,-20209.1189,0.00023041,2]
[391726784,1760754640479,-1000.0,0.00023041,2]
[391726785,1760754640488,-6290.49,0.00023051,2]
[391726786,1760754640498,-1345.18032796,0.00023081,2]